Cogmind - Beta 11.1 @@@ ROGUE MODE // 2022.05.02 @ 23:44:36 Player: slowdive Result: Destroyed by as-96357 with Assembled Maul Performance ------------- Evolutions (0) 0 Regions Visited (3) 600 Robots Destroyed (32) 160 Value Destroyed (740) 740 Prototype IDs (1) 20 Alien Tech Used (0) 0 Bonus (300) 300 TOTAL SCORE: 1820 Bonus ------- Aligned with FarCom 300 Cogmind --------- Core Integrity 0/250 Matter 288/300 Energy 31/100 System Corruption 4% Temperature Cool (31) Movement Core (700) Ox13 Location -10/Exiles Parts ------- > --- POWER (1) -------- (None) > --- PROPULSION (2) --- (None) > --- UTILITY (2) ------ High-capacity Storage Unit > --- WEAPON (2) ------- Katana > --- INVENTORY (20) --- Fission Core Light Treads Wheel Cryofiber Web Heat Sink Medium Storage Unit Large Storage Unit Large Matter Pod (150) Sensor Array Signal Interpreter Terrain Scanner Terrain Scan Processor Targeting Computer Hacking Suite Medium Laser Medium Laser Grenade Launcher Rocket Launcher Mining Laser Welding Torch Peak State ------------ > --- POWER ------------ (None) > --- PROPULSION ------- Wheel Wheel > --- UTILITY ---------- High-capacity Storage Unit Experimental Sensor Array > --- WEAPON ----------- Shock Bomb Launcher Katana > --- INVENTORY -------- Fission Core Light Treads Wheel Cryofiber Web Heat Sink Medium Storage Unit Large Storage Unit Large Matter Pod Sensor Array Signal Interpreter Terrain Scanner Terrain Scan Processor Targeting Computer Hacking Suite Medium Laser Medium Laser Grenade Launcher Rocket Launcher Mining Laser Welding Torch [Rating: 21] Favorites ----------- Power Ion Engine Engine Ion Engine Power Core Light Nuclear Core Propulsion Light Treads Treads Light Treads Leg Aluminum Leg Wheel Wheel Utility Sensor Array Device Sensor Array Storage High-capacity Storage Unit Weapon Medium Laser Energy Gun Medium Laser Launcher Shock Bomb Launcher Slashing Weapon Katana Build | -11 -10 -10 -10 ------- Run | Scr Mat Min Exi Slots Evolved . | . . . . Power . | . . . . Propulsion . | . . . . Utility . | . . . . Weapon . | . . . . Parts Attached 27 | . 13 14 . Power 4 | . 2 2 . Engine 3 | . 2 1 . Core 1 | . . 1 . Reactor . | . . . . Propulsion 8 | . 4 4 . Treads 5 | . 4 1 . Leg . | . . . . Wheel 3 | . . 3 . Hover . | . . . . Flight . | . . . . Utility 6 | . 4 2 . Device 3 | . 1 2 . Storage 3 | . 3 . . Processor . | . . . . Hackware . | . . . . Protection . | . . . . Artifact . | . . . . Weapon 9 | . 3 6 . Energy Gun 5 | . 2 3 . Energy Cannon . | . . . . Ballistic Gun . | . . . . Ballistic Cannon . | . . . . Launcher 2 | . 1 1 . Special Weapon . | . . . . Impact Weapon . | . . . . Slashing Weapon 2 | . . 2 . Piercing Weapon . | . . . . Special Melee Weapon . | . . . . Unidentified Prototypes 1 | . . 1 . Parts Lost 11 | . 1 6 4 Power 4 | . 1 3 . Propulsion 3 | . . 1 2 Utility 1 | . . . 1 Weapon 3 | . . 2 1 Highest Loss Streak 4 | . 1 2 4 To Critical Strikes . | . . . . Average Slot Usage (%) 95 | . 99 93 83 Engine 9 | . 14 8 . Treads 20 | . 26 18 . Wheel 7 | . . 9 27 Device 13 | . 13 14 13 Storage 14 | . 14 14 14 Energy Gun 19 | . 27 15 . Launcher 3 | . . 3 13 Slashing Weapon 4 | . . 6 14 Naked Turns . | . . . . Heaviest Build 50 | 12 50 50 49 Greatest Support 40 | 20 40 40 20 Greatest Overweight (x) 4 | . 1 4 2 Average Overweight (x) 1 | . . 1 2 Largest Inventory Capacity 20 | . 20 20 20 Average Capacity 16 | . 12 20 20 Most Carried 20 | . 16 20 20 Average Carried 14 | . 10 17 19 Final Capacity 20 | 8 20 20 20 Final Carried 20 | 6 16 19 20 Class Distribution -------------------- 100% | Mutant Dominant Class ---------------- Mutant | -10/Materials Mutant | -10/Mines Mutant | -10/Exiles Resources | -11 -10 -10 -10 ----------- Run | Scr Mat Min Exi Matter Collected 675 | 200 230 245 . Remotely . | . . . . Salvage Created 1040 | . 644 329 67 Parts 63 | . 44 19 . Haulers Intercepted 2 | . 2 . . Recyclers Shooed 1 | . 1 . . Parts Field Recycled . | . . . . Retrieved Matter . | . . . . Parts Self-Destructed . | . . . . Prevented . | . . . . Kills | -11 -10 -10 -10 ------- Run | Scr Mat Min Exi Combat Hostiles Destroyed 24 | . 14 6 4 Melee 5 | . . 2 3 Guns 12 | . 10 2 . AOE 7 | . 4 2 1 Classes Destroyed 9 | . 6 2 1 Builder 3 | . . 3 . Tunneler 1 | . . 1 . Hauler 2 | . 2 . . Recycler 1 | . 1 . . Operator 2 | . 2 . . Watcher 3 | . 3 . . Swarmer 6 | . 6 . . Grunt 14 | . 8 6 . Assembled 4 | . . . 4 Best Kill Streak 8 | . 8 3 4 Combat Bots Only 7 | . 7 2 4 Max Kills in Single Turn 3 | . 3 1 1 Gunslinging . | . . . . Exploded 2 | . 2 1 1 Melee 1 | . . 1 1 Uniques/NPCs Destroyed . | . . . . Combat | -11 -10 -10 -10 -------- Run | Scr Mat Min Exi Damage Taken 1522 | . 377 848 297 Core 283 | . 36 168 79 Absorbed by Shields . | . . . . Regen/Repaired (Parts) 67 | . 67 . . Core Remaining (%) 100 | 100 . . . Volleys Fired 53 | . 33 19 1 Largest 2 | . 2 2 1 Hottest 100 | . 90 100 36 Shots Fired 98 | . 64 32 2 Gun 92 | . 63 29 . Cannon . | . . . . Launcher 6 | . 1 3 2 Special . | . . . . Kinetic . | . . . . Thermal 49 | . 31 18 . Explosive 1 | . 1 . . Electromagnetic 48 | . 32 14 2 Robot Hit Streak 9 | . 9 8 1 Robot Miss Streak 3 | . 3 2 1 Penetration Max . | . . . . Secondary Targets 2 | . 2 . . Max Gunslinging Chain 1 | . 1 . . Shots Hit Robots 85 | . 44 37 4 Core Hits 51 | . 32 14 5 Critical Kills . | . . . . Critical Parts Destroyed . | . . . . Critical Strikes 3 | . 1 2 . Burn 1 | . 1 . . Sever 2 | . . 2 . Melee Attacks 24 | . . 20 4 Impact . | . . . . Slashing 24 | . . 20 4 Piercing . | . . . . Sneak Attacks 3 | . . 3 . Combat Hostiles . | . . . . Follow-up Attacks . | . . . . Damage Inflicted 2135 | . 877 1041 217 Guns 837 | . 578 259 . Cannons . | . . . . Explosions 648 | . 299 253 96 Melee 650 | . . 529 121 Ramming . | . . . . Kinetic . | . . . . Thermal 802 | . 449 353 . Explosive 74 | . 74 . . Electromagnetic 609 | . 354 159 96 Impact . | . . . . Slashing 650 | . . 529 121 Piercing . | . . . . Highest Corruption 4 | . 2 2 4 Average Corruption 2 | . 2 2 2 Corruption Purged . | . . . . Corruption Blocked . | . . . . Effects 45 | . 15 21 9 Message Errors 14 | . 6 5 3 Matter Fused 11 | . 3 6 2 Heat Flow Errors 9 | . 3 5 1 Energy Discharges 5 | . 2 2 1 Data Loss (minor) 3 | . . 2 1 Data Loss (major) 2 | . 1 1 . Misfires 1 | . . . 1 Overload Shots . | . . . . Overflow Damage 127 | . 25 69 33 Projectiles . | . . . . Explosions 25 | . 25 . . Melee 102 | . . 69 33 Knockbacks . | . . . . Impact . | . . . . Kinetic . | . . . . Secondary . | . . . . Self-Inflicted Damage 75 | . 42 12 21 Shots 4 | . 2 1 1 Rammed . | . . . . Targets Rammed . | . . . . Kicked . | . . . . Crushed . | . . . . Highest Temperature 330 | . 241 330 271 Average Temperature 89 | . 75 101 162 Received Heat Transfer 666 | . 123 483 60 Siege Activations . | . . . . Robots Corrupted . | . . . . Combat Hostiles . | . . . . Parts Fried 2 | . 2 . . Impact Corruptions . | . . . . Robots Melted . | . . . . Combat Hostiles . | . . . . Parts Melted 1 | . 1 . . Heat Transferred 1884 | . 1190 694 . Parts Sabotaged . | . . . . Parts Stolen . | . . . . Parts Stripped . | . . . . Power Chain Reactions 5 | . 3 2 . Missiles Intercepted . | . . . . Alert | -11 -10 -10 -10 ------- Run | Scr Mat Min Exi Peak Influence 282 | . 282 97 . Initial . | . . . . Average 53 | . 71 30 . Maximum Alert Level 1 | . 1 . . Low Security (%) 95 | . 92 100 . Level 1 4 | . 7 . . Level 2 . | . . . . Level 3 . | . . . . Level 4 . | . . . . Level 5 . | . . . . High Security . | . . . . Max Security . | . . . . Squads Dispatched 4 | . 3 1 . Investigation 2 | . 1 1 . Extermination . | . . . . Reinforcement 2 | . 2 . . Assault . | . . . . Garrison . | . . . . Intercept . | . . . . Searches Triggered . | . . . . Construction Impeded . | . . . . Haulers Reinforced . | . . . . Active Scanning Responses . | . . . . Cargo Convoy Interrupts . | . . . . Stealth | -11 -10 -10 -10 --------- Run | Scr Mat Min Exi Distress Signals 2 | . 2 . . Communications Jammed . | . . . . Distress Signals . | . . . . Times Spotted 34 | . 20 7 7 Peak Tracking Total 9 | . 6 2 9 Tactical Retreats 1 | . 1 . . Traps | -11 -10 -10 -10 ------- Run | Scr Mat Min Exi Traps Triggered 2 | . 2 . . Indirectly . | . . . . Trap Hack Attempts . | . . . . Triggered . | . . . . Disarmed . | . . . . Reprogrammed . | . . . . Reused . | . . . . Traps Extracted . | . . . . Installed . | . . . . Triggered . | . . . . Machines | -11 -10 -10 -10 ---------- Run | Scr Mat Min Exi Machines Disabled 6 | . 3 1 2 Max in Single Turn 2 | . 2 1 1 Machines Sabotaged . | . . . . Garrisons Compromised . | . . . . Overloaded Fab Kills . | . . . . Hacking | -11 -10 -10 -10 --------- Run | Scr Mat Min Exi Machines Accessed 8 | . 7 1 . Terminals 5 | . 5 . . Fabricators . | . . . . Repair Stations 1 | . 1 . . Recycling Units 1 | . 1 . . Scanalyzers . | . . . . Garrison Access . | . . . . Total Hacks 18 | . 17 1 . Successful 10 | . 9 1 . Failed 8 | . 8 . . Catastrophic . | . . . . Database Lockouts . | . . . . Manual 5 | . 5 . . Terminals 14 | . 14 . . Fabricators . | . . . . Repair Stations 2 | . 2 . . Recycling Units 1 | . 1 . . Scanalyzers . | . . . . Garrison Access . | . . . . Terminal Hacks 4 | . 3 1 . Open Door 1 | . . 1 . Unreport Threat 1 | . 1 . . Hauler Manifests 2 | . 2 . . Fabricator Hacks . | . . . . Repair Station Hacks 2 | . 2 . . Scan Component 1 | . 1 . . Repair 1 | . 1 . . Recycling Unit Hacks 1 | . 1 . . Report Inventory 1 | . 1 . . Scanalyzer . | . . . . Garrison Access Hacks . | . . . . Unauthorized Hacks 3 | . 3 . . Terminals 3 | . 3 . . Track 1 | . 1 . . Operators 2 | . 2 . . Fabricators . | . . . . Repair Stations . | . . . . Recycling Units . | . . . . Scanalyzers . | . . . . Garrison Access . | . . . . Data Cores Recovered . | . . . . Used . | . . . . Hacking Detections 5 | . 5 . . Full Trace Events 2 | . 2 . . Feedback Events . | . . . . Feedback Blocked . | . . . . Robot Schematics Acquired . | . . . . Robots Built . | . . . . Authchips . | . . . . Time . | . . . . Total Robot Build Rating . | . . . . Part Schematics Acquired . | . . . . Parts Built . | . . . . Authchips . | . . . . Time . | . . . . Total Part Build Rating . | . . . . Parts Repaired 1 | . 1 . . Time 26 | . 26 . . Parts Recycled . | . . . . Recycled Matter . | . . . . Retrieved Matter . | . . . . Retrieved Components . | . . . . Parts Scanalyzed . | . . . . Part Schematics Acquired . | . . . . Parts Damaged . | . . . . Bothacking | -11 -10 -10 -10 ------------ Run | Scr Mat Min Exi Used RIF Installer . | . . . . Robots Hacked . | . . . . Non-combat . | . . . . Combat . | . . . . Robot Hacks Applied . | . . . . Relay Couplers Released . | . . . . Fabnet Peak Effective % . | . . . . Robots Rewired . | . . . . Allies Hacked . | . . . . Hacks Repelled . | . . . . Allies | -11 -10 -10 -10 -------- Run | Scr Mat Min Exi Total Allies . | . . . . Largest Group . | . . . . Highest-Rated Group . | . . . . Highest-Rated Ally . | . . . . Total Orders . | . . . . Ally Attacks . | . . . . Total Damage . | . . . . Kills . | . . . . Allies Corrupted . | . . . . Allies Melted . | . . . . Intel | -11 -10 -10 -10 ------- Run | Scr Mat Min Exi Robot Analysis Total . | . . . . Derelict Logs Recovered 2 | . . 2 . Drone Launches . | . . . . Drone Recoveries . | . . . . Exploration | -11 -10 -10 -10 ------------- Run | Scr Mat Min Exi Turns Passed 3559 | . 1702 1396 461 Spaces Moved 1980 | 1 833 738 408 Core . | . . . . Treads 1095 | . 781 314 . Legs 53 | 1 52 . . Wheels 832 | . . 424 408 Hover . | . . . . Flight . | . . . . Fastest Speed 110 | 120 120 110 110 Average Speed 158 | 120 172 169 110 Slowest Speed 240 | 120 240 240 110 Overloaded Moves . | . . . . Propulsion Burnouts . | . . . . Robots Hopped . | . . . . Cave-ins Triggered . | . . . . Exploration Rate (%) 68 | 2 96 97 80 Regions Visited 3 Branch Regions 2 Pre-discovered Areas 2 | . . 2 . Known Exits Taken . | . . . . Unknown Exits Taken 3 | 1 1 1 . Scrap Searched 1 | . . 1 . Spaces Dug . | . . . . Terrain Destroyed 20 | . 11 9 . Melee . | . . . . Projectile . | . . . . AOE 20 | . 11 9 . Terrain Rammed . | . . . . Walls Destroyed . | . . . . Machines Disabled . | . . . . Actions | -11 -10 -10 -10 --------- Run | Scr Mat Min Exi Total 2262 | . 1032 816 414 Wait 148 | . 131 17 . Move 1977 | . 832 737 408 Hop . | . . . . Pick Up 23 | . 15 7 1 Fast Attach 3 | . 2 1 . Attach 6 | . 1 5 . Detach 1 | . . 1 . Swap 18 | . 10 8 . Drop 9 | . 8 1 . Fire 53 | . 33 19 1 Melee 24 | . . 20 4 Ram . | . . . . Kick . | . . . . Crush . | . . . . Escape Stasis . | . . . . Rewire . | . . . . Trap . | . . . . Miscellaneous . | . . . . Route ------- -11/Scrapyard -10/Materials (discovered 4 exits: *Mat x3 / *Min) -10/Mines (discovered 3 exits: *Mat x2 / *Exi) -10/Exiles History --------- Turn | Location | Event 1 | -11/Scrapyard | Discovered new exit (range 0) 1 | -11/Scrapyard | Entered Materials 233 | -10/Materials | Destroyed 7 combat bots 313 | -10/Materials | Build established: Mutant 512 | -10/Materials | Discovered new exit (range 5) 583 | -10/Materials | Discovered new exit (range 16) 695 | -10/Materials | Repaired Lgt. Treads 1059 | -10/Materials | Discovered new exit (range 5) 1333 | -10/Materials | Discovered new exit (range 5) 1703 | -10/Materials | Entered Mines 1772 | -10/Mines | Learned location of Recycling (-7) 1856 | -10/Mines | Identified exit to Materials 2000 | -10/Mines | Met a Derelict shopkeep closing up shop 2072 | -10/Mines | Deemed a non-threat by the Exiles lab entrance 2075 | -10/Mines | Discovered new exit (range 5) 2688 | -10/Mines | Core integrity fell below 50% 2711 | -10/Mines | Core integrity fell below 20% 2755 | -10/Mines | Received a Rocket Launcher from a helpful Derelict 2877 | -10/Mines | Found a damaged Exp. Sensor Array with a note attached 2879 | -10/Mines | Found Prototype Device 2881 | -10/Mines | Identified Exp. Sensor Array 2921 | -10/Mines | Discovered exit to Materials (range 12) 2991 | -10/Mines | Learned location of Storage (-7) 3099 | -10/Mines | Entered Exiles 3128 | -10/Exiles | Met 8R-AWN 3146 | -10/Exiles | Met EX-HEX 3205 | -10/Exiles | Met EX-DEC 3286 | -10/Exiles | Visited The Gauntlet 3495 | -10/Exiles | Met EX-BIN 3524 | -10/Exiles | Aligned with FarCom system 3525 | -10/Exiles | Given EX-Vault access code 3529 | -10/Exiles | Attacked by the Exiles 3560 | -10/Exiles | Destroyed by as-96357 with Assembled Maul Last Messages --------------- 03529_ System corrupted: FCS attempts to trigger Shock Bomb Launcher. 03529_ System corrupted: Shock Bomb Launcher misfires. 03529_ EXILES: Hostile robot within lab perimeter. Defensive protocols time, folks! 03529_ FarCom Aligner disabled. 03531_ EX-BIN: "I just want to science!" 03545_ System corrupted: Heat flow error (+296). 03545_ Connecting with DEC's Terminal... 03549_ Wheel destroyed. 03549_ as-48710 destroyed. 03551_ Destroyed Asb. Hover Unit. 03551_ as-91009 destroyed. 03551_ Wheel destroyed. 03553_ Exp. Sensor Array destroyed. 03553_ System corrupted by crushing effect (+2). 03553_ Knocked back. 03554_ Destroyed Asb. Hover Unit. 03554_ as-37938 destroyed. 03557_ Shock Bomb Launcher destroyed. 03559_ as-64746 destroyed. Map ----- +----------------------------------------------------+ | | | | | | | | | | | | | | | ?????????????????????????????????????????????????? | | ?????????????????????????????????????????????????? | | ?????????????????????????????????????????????????? | | ?????????????????????????????????????????????????? | | ?????????????????????????????????????????????????? | | ???????????????????????????######????????????????? | | ??????????????????????????? #????????????????? | | ??????????????????????????# #????????????????? | | ??????????????????????????# #????????????????? | | ??????????????????????????# #???#????????????? | | ??????????????????????????# #??"?????????????? | | ??????????????????????????# ## ??????????????? | | ??????????????????????????# ???????????????? | | ??????????????????????????# #????????????????? | | ??????????????????######### #????????????????? | | ??????????????????#""""" ## #????????????????? | | ??????????????????#"""" ##% #????????????????? | | ??????????????????#""X" aa #????????????????? | | ??????????????????#" @a #????????????????? | | ??????????????????#" ##% #????????????????? | | ??????????????????#""""""## #?#########??????? | | ??????????????????##"###### #?#"""""""#??????? | | ?????????????????? "?????# #?#"""""""#??????? | | ?????????????????"""??????# #?#"""""""#??????? | | ?????????????????"""?????## ###"" """"#??????? | | ?????????????????????????#" " #??????? | | ?????????????????????????#" #??????? | | ?????????????????????????#" "#??????? | | ?????????????????????????#" "#??????? | | ??????????########???????#" "#??????? | | ??????????# """#???????#" "##?????? | | ??????????#"" """#???????## " """?????? | | ??????????#"" #????????# """##?????? | | ??????????#"" #????????#" "X" """""?????? | | ??????????#"" "#????????#" """ # ?????? | | ??????????# ""#????????#" """""""""#??????? | | ??????????#"" ""#???????##" ###########??????? | | #?????????### ###??????##"" #????????????????? | | #####????### ###?######"" #????????????????? | | """#####X# #"###""""""" ##???????????????? | | """""" " "" ##??????????????? | | "" """ " #####""??"""?"?? | | " " " """ """"# | +----------------------------------------------------+ Best States ------------- Heat Dissipation 25 Energy Generation 14 Energy Capacity 250 Matter Stores 300 Matter Capacity 350 Sight Range 16 Robot Scan Range 20 Terrain Scan Density 10 Base Temperature (-) 100 Evasion (%) 55 Recoil Reduction 2 Item Schematics ----------------- None Robot Schematics ------------------ None Fabricated ------------ Nothing Alien Tech Used ----------------- None Achievements -------------- None Challenges ------------ None Game ------ Seed CoilMobileHumpback Manual? 0 Play Time 00:30:43 Cumulative 75.9 hours Start 2022.05.02 @ 23:13:15 End 2022.05.02 @ 23:44:36 Sessions 1 Manual Loads 0 Difficulty Rogue Special Mode None Game No. 81 Rogue 81 Adventurer 0 Explorer 0 Win Type - Total 0 Types 0/0/0/0/0/0/0/0/0 Lore% 24 Gallery% 33 Achievement% 26 Wizard Run 0 Options --------- ASCII 0 Keyboard 0 Movement Numpad Keybinds 0 Fullscreen 2 Font 18/Smallcaps Map View 76x50 Tactical HUD 1 Map Filters NONE Filters NONE Steam 1 RUN: b89c547b-babe-461e-aaa7-7fc1d48dd9c8